fUST/lending_fUST_20250420
["ID","MTS","AMOUNT","RATE_DAILY","PERIOD"]
[358418364,1745103846437,-109043.25729463,0.00018434,2]
[358418414,1745104232959,-151.0,0.00018423,2]
[358418415,1745104232969,-207.4,0.00018423,2]
[358418416,1745104232979,-300.0,0.00018433,2]
[358418417,1745104232989,-300.0,0.00018433,2]
[358418418,1745104232998,-3666.583028,0.00018434,2]
[358418419,1745104233010,-5742.16786703,0.00018434,2]
[358418420,1745104233026,-1579.21663627,0.00018434,2]
[358418421,1745104233050,-43822.48722106,0.00018434,2]
[358418423,1745104238228,-26105.09942242,0.00018434,2]
[358418424,1745104238238,-1059.81726992,0.00018434,2]
[358418425,1745104238248,-151.0,0.00018434,2]
[358418426,1745104238257,-151.0,0.00018434,2]
[358418427,1745104238266,-151.0,0.00018434,2]
[358418428,1745104238275,-151.0,0.00018434,2]
[358418429,1745104238285,-151.0,0.00018434,2]
[358418430,1745104238294,-151.0,0.00018434,2]
[358418431,1745104238303,-151.0,0.00018434,2]
[358418432,1745104238312,-151.0,0.00018434,2]
[358418433,1745104238323,-151.0,0.00018434,2]
[358418434,1745104238333,-250.0,0.00018436,2]
[358418435,1745104238343,-500.0,0.00018473,2]
[358418436,1745104238352,-500.0,0.00018473,2]
[358418437,1745104238363,-581.41681076,0.00018473,2]
[358418438,1745104238372,-152.0,0.00018497,2]
[358418439,1745104238382,-151.0,0.00018534,2]
[358418440,1745104238392,-151.0,0.00018534,2]
[358418441,1745104238403,-274.17124176,0.00018538,2]
[358418442,1745104238413,-160.0,0.00018539,3]
[358418443,1745104238422,-12562.5629343,0.00018539,3]
[358418444,1745104238431,-839.40992179,0.00018539,3]
[358418445,1745104238440,-160.0,0.00018539,3]
[358418446,1745104238449,-151.0,0.00018539,2]
[358418447,1745104238459,-151.0,0.00018539,2]
[358418448,1745104238468,-152.36895,0.00018539,2]
[358418449,1745104238478,-206.555374,0.00018539,2]
[358418450,1745104238487,-151.0,0.00018539,2]
[358418451,1745104238496,-151.0,0.00018539,2]
[358418452,1745104238506,-151.0,0.00018539,2]
[358418453,1745104238515,-151.0,0.00018539,2]
[358418454,1745104238525,-151.0,0.00018539,2]
[358418455,1745104238534,-151.0,0.00018539,2]
[358418456,1745104238543,-151.0,0.00018539,2]
[358418457,1745104238553,-151.0,0.00018539,2]
[358418458,1745104238562,-151.0,0.00018539,2]
[358418459,1745104238574,-151.0,0.00018539,2]
[358418460,1745104238584,-151.0,0.00018543,2]
[358418461,1745104238596,-151.0,0.00018543,2]
[358418462,1745104238606,-151.0,0.00018543,2]
[358418463,1745104238615,-151.0,0.00018543,2]
[358418464,1745104238624,-151.0,0.00018543,2]
[358418465,1745104238634,-151.0,0.00018543,2]
[358418466,1745104238643,-192.684676,0.00018543,2]
[358418467,1745104238653,-151.0,0.00018543,2]
[358418468,1745104238662,-151.0,0.00018543,2]
[358418469,1745104238674,-151.0,0.00018543,2]
[358418470,1745104238683,-151.0,0.00018543,2]
[358418471,1745104238692,-151.0,0.00018543,2]
[358418472,1745104238701,-151.0,0.00018543,2]
[358418473,1745104238711,-201.60714836,0.00018543,2]
[358418474,1745104238720,-151.0,0.00018543,2]
[358418475,1745104238730,-151.0,0.00018543,2]
[358418476,1745104238739,-606.87818694,0.00018573,2]
[358418477,1745104238748,-500.0,0.00018573,2]
[358418478,1745104238758,-425.64373373,0.00018573,2]
[358418479,1745104238767,-151.0,0.00018573,2]
[358418480,1745104238776,-172.617206,0.00018573,2]
[358418481,1745104238786,-151.0,0.00018573,2]
[358418482,1745104238795,-151.0,0.00018573,2]
[358418483,1745104238804,-226.20128,0.00018573,2]
[358418484,1745104238813,-151.0,0.00018646,2]
[358418485,1745104238823,-151.0,0.00018646,2]
[358418486,1745104238832,-177.03674666,0.00018663,2]
[358418487,1745104238842,-4963.51069668,0.00018663,2]
[358418488,1745104238851,-151.0,0.0001868,2]
[358418489,1745104238862,-151.0,0.0001868,2]
[358418490,1745104238871,-313.3133706,0.000187,2]
[358418491,1745104238881,-271.3668746,0.000187,2]
[358418492,1745104238891,-623.4139313,0.000187,2]
[358418493,1745104238900,-151.0,0.00018807,2]
[358418494,1745104238910,-151.0,0.00018807,2]
[358418495,1745104238920,-4103.93825464,0.00018807,2]
[358418496,1745104238929,-151.0,0.00018817,2]
[358418497,1745104238939,-800.0,0.00018832,2]
[358418498,1745104238949,-3679.96025513,0.00018884,2]
[358418499,1745104238959,-151.0,0.00018884,2]
[358418500,1745104238969,-151.0,0.000189,2]
[358418501,1745104238978,-2049.77980722,0.000189,2]
[358418502,1745104238988,-192.0,0.00018913,2]
[358418503,1745104238998,-800.0,0.00018915,2]
[358418504,1745104239008,-402.0,0.00018994,2]
[358418505,1745104239018,-151.0,0.0001902,2]
[358418506,1745104239027,-151.0,0.0001902,2]
[358418507,1745104239037,-250.0,0.0001902,2]
[358418508,1745104239047,-159.529,0.0001902,2]
[358418509,1745104239056,-153.798,0.0001902,2]
[358418510,1745104239066,-2314.554,0.0001902,2]
[358418511,1745104239076,-151.0,0.00019021,2]
[358418512,1745104239085,-151.0,0.00019021,2]
[358418513,1745104239094,-800.0,0.00019033,2]
[358418514,1745104239103,-800.0,0.00019074,2]
[358418515,1745104239113,-661.6683162,0.00019082,2]
[358418516,1745104239122,-173.54346375,0.00019096,2]
[358418517,1745104239131,-800.0,0.00019097,2]
[358418518,1745104239140,-91924.740629,0.000191,3]
[358418519,1745104239149,-151.0,0.000191,2]
[358418520,1745104239158,-151.0,0.000191,2]
[358418521,1745104239168,-152.486814,0.000191,2]
[358418522,1745104239177,-151.0,0.000191,2]
[358418523,1745104239187,-151.0,0.000191,2]
[358418524,1745104239196,-151.0,0.000191,2]
[358418525,1745104239207,-151.0,0.000191,2]
[358418526,1745104239216,-151.0,0.000191,2]
[358418527,1745104239225,-151.0,0.000191,2]
[358418528,1745104239235,-151.0,0.000191,2]
[358418529,1745104239244,-151.0,0.000191,2]
[358418530,1745104239253,-151.0,0.000191,2]
[358418531,1745104239263,-151.0,0.000191,2]
[358418532,1745104239272,-151.0,0.000191,2]
[358418533,1745104239281,-800.0,0.00019112,2]
[358418534,1745104239292,-2000.0,0.0001915,2]
[358418535,1745104239301,-500.0,0.00019173,2]
[358418536,1745104239310,-500.0,0.00019173,2]
[358418537,1745104239319,-500.0,0.00019173,2]
[358418538,1745104239329,-500.0,0.00019173,2]
[358418539,1745104239338,-500.0,0.00019173,2]
[358418540,1745104239348,-500.0,0.00019173,2]
[358418541,1745104239357,-500.0,0.00019173,2]
[358418542,1745104239366,-500.0,0.00019173,2]
[358418543,1745104239375,-500.0,0.00019173,2]
[358418544,1745104239385,-506.27748668,0.00019173,2]
[358418545,1745104239395,-500.0,0.00019173,2]
[358418546,1745104239404,-500.0,0.00019173,2]
[358418547,1745104239414,-500.0,0.00019173,2]
[358418548,1745104239424,-500.0,0.00019173,2]
[358418549,1745104239433,-500.0,0.00019173,2]
[358418550,1745104239443,-500.0,0.00019173,2]
[358418551,1745104239452,-504.14243236,0.00019173,2]
[358418552,1745104239461,-500.0,0.00019173,2]
[358418553,1745104239470,-500.0,0.00019173,2]
[358418554,1745104239480,-500.0,0.00019173,2]
[358418555,1745104239490,-500.0,0.00019173,2]
[358418556,1745104239499,-500.0,0.00019173,2]
[358418557,1745104239510,-500.0,0.00019173,2]
[358418558,1745104239520,-500.0,0.00019173,2]
[358418559,1745104239529,-501.62145296,0.00019173,2]
[358418560,1745104239539,-292.21128,0.00019173,2]
[358418561,1745104239548,-151.0,0.00019173,2]
[358418562,1745104239557,-151.0,0.00019173,2]
[358418563,1745104239566,-1979.54695033,0.00019178,2]
[358418564,1745104239576,-4019.94289133,0.00019178,3]
[358418565,1745104239586,-500.0,0.00019178,2]
[358418566,1745104239598,-500.0,0.00019178,2]
[358418567,1745104239608,-500.0,0.00019178,2]
[358418568,1745104239617,-500.0,0.00019178,2]
[358418569,1745104239626,-500.0,0.00019178,2]
[358418571,1745104239635,-500.0,0.00019178,2]
[358418572,1745104239645,-500.0,0.00019178,2]
[358418573,1745104239654,-500.0,0.00019178,2]
[358418574,1745104239664,-939.71,0.00019178,2]
[358418575,1745104239674,-500.0,0.00019178,2]
[358418576,1745104239684,-500.0,0.00019178,2]
[358418577,1745104239694,-500.0,0.00019178,2]
[358418578,1745104239703,-399.27479538,0.00019178,2]
[358418580,1745104239775,-100.72520462,0.00019178,2]
[358418582,1745104239785,-500.0,0.00019178,2]
[358418584,1745104239794,-500.0,0.00019178,2]
[358418586,1745104239804,-532.88,0.00019178,2]
[358418587,1745104239813,-500.0,0.00019178,2]
[358418589,1745104239823,-910.87,0.00019178,2]
[358418591,1745104239833,-500.0,0.00019178,2]
[358418593,1745104239843,-500.0,0.00019178,2]
[358418595,1745104239852,-500.0,0.00019178,2]
[358418597,1745104239862,-599.63,0.00019178,2]
[358418599,1745104239871,-641.03,0.00019178,2]
[358418601,1745104239881,-500.0,0.00019178,2]
[358418603,1745104239891,-500.0,0.00019178,2]
[358418605,1745104239900,-500.0,0.00019178,2]
[358418607,1745104239910,-837.68,0.00019178,2]
[358418608,1745104239919,-500.0,0.00019178,2]
[358418609,1745104239928,-544.1,0.00019178,2]
[358418610,1745104239938,-500.0,0.00019178,2]
[358418611,1745104239947,-500.0,0.00019178,2]
[358418612,1745104239957,-728.66,0.00019178,2]
[358418613,1745104239966,-500.0,0.00019178,2]
[358418614,1745104239975,-109.43445247,0.00019178,2]
[358418615,1745104240480,-155.80117388,0.00018439,2]
[358418616,1745104240491,-284.71998612,0.00019178,2]
[358418628,1745104243031,-155.80117387,0.00018652,2]
[358418629,1745104243042,-105.84556141,0.00019178,2]
[358418630,1745104243051,-4.37615848,0.00019178,2]
[358418631,1745104243136,-155.80117387,0.00018865,2]
[358418632,1745104243147,-495.62384152,0.00019178,2]
[358418633,1745104243157,-500.0,0.00019178,2]
[358418634,1745104243167,-500.0,0.00019178,2]
[358418635,1745104243176,-348.57498461,0.00019178,2]
[358418649,1745104246194,-155.80117387,0.00019078,2]
[358418650,1745104246204,-151.42501539,0.00019178,2]
[358418651,1745104246214,-602.96,0.00019178,2]
[358418652,1745104246224,-151.0,0.00019178,2]
[358418653,1745104246233,-500.0,0.00019178,2]
[358418654,1745104246243,-151.0,0.00019178,2]
[358418655,1745104246253,-151.0,0.00019178,2]
[358418656,1745104246262,-615.53,0.00019178,2]
[358418657,1745104246272,-500.0,0.00019178,2]
[358418658,1745104246281,-21.28381074,0.00019178,2]
[358418659,1745104246293,-478.71618926,0.00019178,2]
[358418660,1745104246302,-276.7533441,0.00019178,2]
[358418661,1745104352730,199.5988988,0.00018076,2]
[358418663,1745104375999,152.68707532,0.00018076,2]
[358418664,1745104380784,152.68707532,0.00018098,2]
[358418665,1745104527358,238.9752979,0.00017254,2]
[358418666,1745104567332,252.5489143,0.00017248,2]
[358418669,1745104766666,26133.6033501,0.00017247,2]
[358418682,1745104856011,2321.70682819,0.000161,2]
[358418683,1745104908029,24711.1897477,0.00017252,2]
[358418722,1745105313529,223.382618,0.00017315,2]
[358418727,1745105323657,524.5171565,0.00017331,2]
[358418751,1745105432269,-629.16,0.00018233,2]
[358418753,1745105432288,-582.01659597,0.00018233,2]
[358418762,1745105438450,-981.1568095,0.00018233,2]
[358418763,1745105438461,-861.36890537,0.00018234,2]
[358418764,1745105438470,-2377.53703669,0.00018244,2]
[358418765,1745105438480,-353.73,0.00018324,3]
[358418766,1745105438489,-176.87,0.00018324,3]
[358418767,1745105438499,-530.62,0.00018324,3]
[358418768,1745105438509,-300.0,0.00018331,2]
[358418769,1745105438518,-300.0,0.00018331,2]
[358418770,1745105438528,-848.4901985,0.00018332,2]
[358418771,1745105438537,-500.0,0.00018333,2]
[358418772,1745105438546,-182.31904856,0.00018333,2]
[358418773,1745105438556,-500.0,0.00018333,2]
[358418774,1745105438566,-500.0,0.00018333,2]
[358418775,1745105438576,-199.90189927,0.00018333,2]
[358418776,1745105438586,-500.0,0.00018333,2]
[358418777,1745105438595,-500.0,0.00018333,2]
[358418778,1745105438605,-345.75709365,0.00018333,2]
[358418779,1745105438620,-154.24290635,0.00018333,2]
[358418780,1745105438630,-500.0,0.00018333,2]
[358418781,1745105438640,-500.0,0.00018333,2]
[358418782,1745105438649,-500.0,0.00018333,2]
[358418783,1745105438659,-500.0,0.00018333,2]
[358418784,1745105438668,-500.0,0.00018333,2]
[358418785,1745105438678,-500.0,0.00018333,2]
[358418787,1745105438688,-500.0,0.00018333,2]
[358418789,1745105438697,-500.0,0.00018333,2]
[358418791,1745105438706,-500.0,0.00018333,2]
[358418792,1745105438715,-500.0,0.00018333,2]
[358418793,1745105438725,-500.0,0.00018333,2]
[358418794,1745105438734,-500.0,0.00018333,2]
[358418795,1745105438743,-500.0,0.00018333,2]
[358418796,1745105438753,-500.0,0.00018333,2]
[358418797,1745105438762,-500.0,0.00018333,2]
[358418798,1745105438772,-500.0,0.00018333,2]
[358418799,1745105438781,-500.0,0.00018333,2]
[358418800,1745105438791,-500.0,0.00018333,2]
[358418801,1745105438800,-500.0,0.00018333,2]
[358418802,1745105438810,-500.0,0.00018333,2]
[358418803,1745105438819,-236.83791569,0.00018333,2]
[358418804,1745105438861,-263.16208431,0.00018333,2]
[358418805,1745105438870,-500.0,0.00018333,2]
[358418806,1745105438880,-500.0,0.00018333,2]
[358418807,1745105438889,-500.0,0.00018333,2]
[358418808,1745105438899,-500.0,0.00018333,2]
[358418809,1745105438910,-500.0,0.00018333,2]
[358418810,1745105438919,-500.0,0.00018333,2]
[358418811,1745105438929,-500.0,0.00018333,2]
[358418812,1745105438939,-500.0,0.00018333,2]
[358418813,1745105438949,-500.0,0.00018333,2]
[358418814,1745105438958,-500.0,0.00018333,2]
[358418815,1745105438968,-500.0,0.00018333,2]
[358418816,1745105438977,-500.0,0.00018333,2]
[358418817,1745105438987,-500.0,0.00018333,2]
[358418818,1745105438998,-500.0,0.00018333,2]
[358418819,1745105439007,-500.0,0.00018333,2]
[358418820,1745105439016,-550.20889831,0.00018333,2]
[358418821,1745105439026,-500.0,0.00018333,2]
[358418822,1745105439035,-500.0,0.00018333,2]
[358418823,1745105439045,-500.0,0.00018333,2]
[358418824,1745105439055,-500.0,0.00018333,2]
[358418825,1745105439067,-500.0,0.00018333,2]
[358418826,1745105439076,-500.0,0.00018333,2]
[358418827,1745105439086,-500.0,0.00018333,2]
[358418828,1745105439095,-650.0,0.00018333,2]
[358418829,1745105439104,-500.0,0.00018333,2]
[358418830,1745105439113,-221.9926883,0.00018333,2]
[358418831,1745105439123,-293.69423789,0.00018333,2]
[358418832,1745105439132,-151.0,0.00018333,2]
[358418833,1745105439141,-151.0,0.00018333,2]
[358418834,1745105439150,-166.70485007,0.00018333,2]
[358418835,1745105439159,-208.81991313,0.00018333,2]
[358418836,1745105439168,-168.99258921,0.00018333,2]
[358418837,1745105439178,-151.0,0.00018333,2]
[358418838,1745105439187,-244.09,0.00018333,2]
[358418839,1745105439197,-161226.6048407,0.00018334,2]
[358418842,1745105440723,-2871.17374703,0.00018334,2]
[358418843,1745105440752,-279.89651618,0.00018334,2]
[358418844,1745105440765,-52761.57891419,0.00018334,2]
[358418845,1745105440778,-13576.2399347,0.00018334,2]
[358418846,1745105440787,-558.80516666,0.00018373,2]
[358418847,1745105440797,-500.0,0.00018373,2]
[358418848,1745105440808,-500.0,0.00018373,2]
[358418849,1745105440817,-500.0,0.00018373,2]
[358418850,1745105440827,-500.0,0.00018373,2]
[358418851,1745105440838,-500.0,0.00018373,2]
[358418852,1745105440848,-500.0,0.00018373,2]
[358418853,1745105440858,-500.0,0.00018373,2]
[358418854,1745105440868,-500.0,0.00018373,2]
[358418855,1745105440878,-500.0,0.00018373,2]
[358418856,1745105440887,-503.80422843,0.00018373,2]
[358418857,1745105441055,-500.0,0.00018373,2]
[358418858,1745105441068,-500.0,0.00018373,2]
[358418859,1745105441078,-585.58975466,0.00018373,2]
[358418860,1745105441087,-500.0,0.00018373,2]
[358418861,1745105441096,-500.0,0.00018373,2]
[358418862,1745105441105,-500.0,0.00018373,2]
[358418863,1745105441115,-500.0,0.00018373,2]
[358418864,1745105441124,-503.70544541,0.00018373,2]
[358418865,1745105441135,-500.0,0.00018373,2]
[358418866,1745105441145,-500.0,0.00018373,2]
[358418867,1745105441154,-500.0,0.00018373,2]
[358418868,1745105441164,-500.0,0.00018373,2]
[358418869,1745105441173,-500.0,0.00018433,2]
[358418870,1745105441182,-500.0,0.00018433,2]
[358418871,1745105441192,-500.0,0.00018433,2]
[358418872,1745105441201,-500.0,0.00018433,2]
[358418873,1745105441210,-500.0,0.00018433,2]
[358418875,1745105441220,-500.0,0.00018433,2]
[358418876,1745105441230,-500.0,0.00018433,2]
[358418877,1745105441239,-500.0,0.00018433,2]
[358418878,1745105441248,-500.0,0.00018433,2]
[358418879,1745105441257,-500.0,0.00018433,2]
[358418880,1745105441266,-500.0,0.00018433,2]
[358418881,1745105441276,-500.0,0.00018433,2]
[358418882,1745105441285,-500.0,0.00018433,2]
[358418883,1745105441294,-500.0,0.00018433,2]
[358418884,1745105441304,-500.0,0.00018433,2]
[358418885,1745105441313,-151.0,0.0001847,2]
[358418886,1745105441323,-151.0,0.0001847,2]
[358418887,1745105441332,-198.0,0.00018607,2]
[358418888,1745105441342,-152.0,0.00018804,2]
[358418889,1745105441351,-5000.0,0.00018807,2]
[358418890,1745105441360,-2098.53879793,0.000189,2]
[358418891,1745105441369,-1000.0,0.00018904,2]
[358418892,1745105441378,-402.0,0.00019068,2]
[358418893,1745105441388,-639.2491031,0.00019082,2]
[358418894,1745105441397,-151.0,0.00019166,2]
[358418895,1745105441407,-207.4,0.00019166,2]
[358418896,1745105441416,-500.0,0.00019173,2]
[358418897,1745105441425,-303.16037851,0.00019173,2]
[358418898,1745105441435,-500.0,0.00019173,2]
[358418899,1745105441445,-500.0,0.00019173,2]
[358418900,1745105441454,-489.40525116,0.00019173,2]
[358418901,1745105441465,-500.63603819,0.00019173,2]
[358418902,1745105441474,-549.9649764,0.00019173,2]
[358418903,1745105441484,-261.05229774,0.00019173,2]
[358418904,1745105441493,-500.0,0.00019173,2]
[358418905,1745105441503,-501.46857729,0.00019173,2]
[358418906,1745105441512,-282.70318792,0.00019173,2]
[358418907,1745105441521,-500.0,0.00019173,2]
[358418908,1745105441531,-500.0,0.00019173,2]
[358418909,1745105441540,-500.0,0.00019173,2]
[358418910,1745105441550,-500.0,0.00019173,2]
[358418911,1745105441560,-14924.26356666,0.00019177,3]
[358418912,1745105441570,-33099.59043437,0.00019177,2]
[358418913,1745105441579,-151.0,0.00019177,2]
[358418914,1745105441590,-12562.5629343,0.00019177,3]
[358418915,1745105441599,-160.0,0.00019178,3]
[358418916,1745105441609,-500.0,0.00019178,2]
[358418917,1745105441619,-199.95816652,0.00019178,2]
[358418918,1745105441628,-500.0,0.00019178,2]
[358418919,1745105441639,-500.0,0.00019178,2]
[358418920,1745105441648,-483.02667109,0.00019178,2]
[358418921,1745105441658,-500.0,0.00019178,2]
[358418922,1745105441667,-675.01,0.00019178,2]
[358418923,1745105441677,-500.0,0.00019178,2]
[358418924,1745105441686,-486.49819198,0.00019178,2]
[358418925,1745105441696,-537.99025955,0.00019178,2]
[358418926,1745105441705,-500.0,0.00019178,2]
[358418927,1745105441715,-500.0,0.00019178,2]
[358418928,1745105441724,-500.0,0.00019178,2]
[358418929,1745105441733,-500.0,0.00019178,2]
[358418930,1745105441743,-593.47,0.00019178,2]
[358418931,1745105441752,-500.0,0.00019178,2]
[358418932,1745105441762,-500.0,0.00019178,2]
[358418933,1745105441771,-500.0,0.00019178,2]
[358418934,1745105441780,-500.0,0.00019178,2]
[358418935,1745105441790,-750.99,0.00019178,2]
[358418936,1745105441799,-500.0,0.00019178,2]
[358418937,1745105441808,-500.0,0.00019178,2]
[358418938,1745105441818,-500.0,0.00019178,2]
[358418939,1745105441827,-500.0,0.00019178,2]
[358418940,1745105441836,-500.0,0.00019178,2]
[358418941,1745105441846,-500.0,0.00019178,2]
[358418942,1745105441856,-500.0,0.00019178,2]
[358418943,1745105441866,-500.0,0.00019178,2]
[358418944,1745105441876,-500.0,0.00019178,2]
[358418945,1745105441887,-500.0,0.00019178,2]
[358418946,1745105441898,-500.0,0.00019178,2]
[358418947,1745105441907,-500.0,0.00019178,2]
[358418948,1745105441917,-500.0,0.00019178,2]
[358418949,1745105441927,-500.0,0.00019178,2]
[358418950,1745105441936,-500.0,0.00019178,2]
[358418951,1745105441945,-500.0,0.00019178,2]
[358418952,1745105441955,-500.0,0.00019178,2]
[358418953,1745105441965,-500.0,0.00019178,2]
[358418954,1745105441975,-500.0,0.00019178,2]
[358418955,1745105441984,-500.0,0.00019178,2]
[358418956,1745105441993,-452.75423156,0.00019178,2]
[358418957,1745105442002,-500.0,0.00019178,2]
[358418958,1745105442012,-500.0,0.00019178,2]
[358418959,1745105442024,-500.0,0.00019178,2]
[358418960,1745105442036,-500.0,0.00019178,2]
[358418961,1745105442048,-457.14601216,0.00019178,2]
[358418962,1745105442059,-500.0,0.00019178,2]
[358418963,1745105442075,-639.05,0.00019178,2]
[358418964,1745105442086,-500.0,0.00019178,2]
[358418965,1745105442095,-500.0,0.00019178,2]
[358418966,1745105442106,-324.43451363,0.00019178,2]
[358418967,1745105442117,-500.0,0.00019178,2]
[358418968,1745105442128,-500.0,0.00019178,2]
[358418969,1745105442138,-500.0,0.00019178,2]
[358418970,1745105442147,-500.0,0.00019178,2]
[358418971,1745105442157,-500.0,0.00019178,2]
[358418972,1745105442168,-500.0,0.00019178,2]
[358418973,1745105442178,-500.0,0.00019178,2]
[358418974,1745105442188,-500.0,0.00019178,2]
[358418975,1745105442197,-500.0,0.00019178,2]
[358418976,1745105442207,-500.0,0.00019178,2]
[358418977,1745105442217,-500.0,0.00019178,2]
[358418978,1745105442227,-500.0,0.00019178,2]
[358418979,1745105442238,-500.0,0.00019178,2]
[358418980,1745105442248,-500.0,0.00019178,2]
[358418981,1745105442258,-500.0,0.00019178,2]
[358418982,1745105442267,-500.0,0.00019178,2]
[358418983,1745105442277,-500.0,0.00019178,2]
[358418984,1745105442286,-500.0,0.00019178,2]
[358418985,1745105442296,-500.0,0.00019178,2]
[358418986,1745105442305,-500.0,0.00019178,2]
[358418987,1745105442315,-500.0,0.00019178,2]
[358418988,1745105442324,-500.0,0.00019178,2]
[358418989,1745105442334,-500.0,0.00019178,2]
[358418990,1745105442344,-500.0,0.00019178,2]
[358418991,1745105442353,-196.67355079,0.00019178,2]
[358418992,1745105442363,-500.0,0.00019178,2]
[358418993,1745105442372,-500.0,0.00019178,2]
[358418994,1745105442382,-500.0,0.00019178,2]
[358418995,1745105442391,-215.22926767,0.00019178,2]
[358418996,1745105442399,-500.0,0.00019178,2]
[358418997,1745105442408,-500.0,0.00019178,2]
[358418998,1745105442418,-500.0,0.00019178,2]
[358418999,1745105442427,-500.0,0.00019178,2]
[358419000,1745105442436,-500.0,0.00019178,2]
[358419001,1745105442446,-500.0,0.00019178,2]
[358419002,1745105442455,-500.0,0.00019178,2]
[358419003,1745105442465,-500.0,0.00019178,2]
[358419004,1745105442475,-500.0,0.00019178,2]
[358419005,1745105442485,-500.0,0.00019178,2]
[358419006,1745105442494,-875.27,0.00019178,2]
[358419007,1745105442504,-500.0,0.00019178,2]
[358419008,1745105442513,-500.0,0.00019178,2]
[358419009,1745105442523,-500.0,0.00019178,2]
[358419010,1745105442532,-500.0,0.00019178,2]
[358419011,1745105442541,-500.0,0.00019178,2]
[358419012,1745105442551,-500.0,0.00019178,2]
[358419013,1745105442560,-500.0,0.00019178,2]
[358419014,1745105442570,-500.0,0.00019178,2]
[358419015,1745105442579,-500.0,0.00019178,2]
[358419016,1745105442589,-500.0,0.00019178,2]
[358419017,1745105442599,-500.0,0.00019178,2]
[358419018,1745105442609,-500.0,0.00019178,2]
[358419019,1745105442618,-541.34,0.00019178,2]
[358419020,1745105442628,-500.0,0.00019178,2]
[358419021,1745105442637,-500.0,0.00019178,2]
[358419022,1745105442646,-293.65140792,0.00019178,2]
[358419023,1745105442655,-500.0,0.00019178,2]
[358419024,1745105442665,-500.0,0.00019178,2]
[358419025,1745105442675,-500.0,0.00019178,2]
[358419026,1745105442684,-500.0,0.00019178,2]
[358419027,1745105442694,-604.46601902,0.00019178,2]
[358419028,1745105442704,-500.0,0.00019178,2]
[358419029,1745105442714,-500.0,0.00019178,2]
[358419030,1745105442724,-500.0,0.00019178,2]
[358419031,1745105442734,-574.65,0.00019178,2]
[358419032,1745105442743,-500.0,0.00019178,2]
[358419033,1745105442752,-500.0,0.00019178,2]
[358419034,1745105442762,-500.0,0.00019178,2]
[358419035,1745105442771,-500.0,0.00019178,2]
[358419036,1745105442780,-852.76,0.00019178,2]
[358419038,1745105442790,-574.1,0.00019178,2]
[358419040,1745105442799,-500.0,0.00019178,2]
[358419041,1745105442809,-500.0,0.00019178,2]
[358419042,1745105442818,-504.49745149,0.00019178,2]
[358419043,1745105442827,-500.0,0.00019178,2]
[358419044,1745105442836,-202.81442009,0.00019178,2]
[358419045,1745105442846,-500.0,0.00019178,2]
[358419046,1745105442855,-577.84,0.00019178,2]
[358419047,1745105442864,-500.0,0.00019178,2]
[358419048,1745105442874,-151.0,0.00019178,2]
[358419049,1745105442884,-151.0,0.00019178,2]